fUST/lending_fUST_20260117
["ID","MTS","AMOUNT","RATE_DAILY","PERIOD"]
[402348005,1768661499598,-605.26,0.00018082,3]
[402348006,1768661499607,-1203.0,0.00018082,3]
[402348007,1768661499617,-514.47,0.00018082,3]
[402348008,1768661499626,-1673.57,0.00018082,3]
[402348009,1768661499636,-500.0,0.00018082,3]
[402348010,1768661499645,-500.0,0.00018082,3]
[402348011,1768661499655,-500.0,0.00018082,3]
[402348012,1768661499664,-602.45,0.00018082,3]
[402348013,1768661499673,-3211.22,0.00018082,3]
[402348014,1768661499683,-1140.99,0.00018082,3]
[402348015,1768661499693,-1139.13,0.00018082,3]
[402348016,1768661499702,-500.0,0.00018082,3]
[402348017,1768661499712,-500.0,0.00018082,3]
[402348018,1768661499725,-500.0,0.00018082,3]
[402348019,1768661499734,-547.09236024,0.00018082,3]
[402348020,1768661499744,-500.0,0.00018082,3]
[402348021,1768661499754,-500.0,0.00018082,3]
[402348022,1768661499764,-500.0,0.00018082,3]
[402348023,1768661499773,-500.0,0.00018082,3]
[402348024,1768661499782,-601.82,0.00018082,3]
[402348025,1768661499792,-500.0,0.00018082,3]
[402348026,1768661499802,-500.0,0.00018082,3]
[402348027,1768661499811,-500.0,0.00018082,3]
[402348028,1768661499821,-766.87,0.00018082,3]
[402348029,1768661499830,-489.41292271,0.00018082,3]
[402348030,1768661499840,-1439.36,0.00018082,3]
[402348031,1768661499850,-500.0,0.00018082,3]
[402348032,1768661499860,-500.0,0.00018082,3]
[402348033,1768661499869,-1279.22,0.00018082,3]
[402348034,1768661499878,-500.0,0.00018082,3]
[402348035,1768661499888,-500.0,0.00018082,3]
[402348036,1768661499897,-500.0,0.00018082,3]
[402348037,1768661499905,-1550.67,0.00018082,3]
[402348038,1768661499914,-500.0,0.00018082,3]
[402348039,1768661499922,-501.86,0.00018082,3]
[402348040,1768661499931,-500.0,0.00018082,3]
[402348041,1768661499939,-2019.61,0.00018082,3]
[402348042,1768661499948,-1079.9,0.00018082,3]
[402348043,1768661499957,-500.0,0.00018082,3]
[402348044,1768661499966,-928.59,0.00018082,3]
[402348045,1768661499975,-567.14,0.00018082,3]
[402348046,1768661499984,-500.0,0.00018082,3]
[402348047,1768661499994,-500.0,0.00018082,3]
[402348048,1768661500004,-923.36,0.00018082,3]
[402348049,1768661500014,-1739.47,0.00018082,3]
[402348050,1768661500023,-605.62,0.00018082,3]
[402348051,1768661500032,-1493.1,0.00018082,3]
[402348052,1768661500041,-500.0,0.00018082,3]
[402348053,1768661500051,-1147.52,0.00018082,3]
[402348054,1768661500061,-1469.78,0.00018082,3]
[402348055,1768661500071,-588.68,0.00018082,3]
[402348056,1768661500081,-603.4,0.00018082,3]
[402348057,1768661500090,-1684.82,0.00018082,3]
[402348058,1768661500100,-500.0,0.00018082,3]
[402348059,1768661500110,-500.0,0.00018082,3]
[402348060,1768661500120,-1200.0,0.00018082,2]
[402348061,1768661500129,-602.36,0.00018082,3]
[402348062,1768661500139,-500.0,0.00018082,3]
[402348063,1768661500148,-500.0,0.00018082,3]
[402348064,1768661500158,-500.0,0.00018082,3]
[402348065,1768661500168,-500.0,0.00018082,3]
[402348066,1768661500177,-854.67,0.00018082,3]
[402348067,1768661500186,-500.0,0.00018082,3]
[402348068,1768661500195,-500.0,0.00018082,3]
[402348069,1768661500205,-500.0,0.00018082,3]
[402348070,1768661500214,-1511.03,0.00018082,3]
[402348071,1768661500223,-500.0,0.00018082,3]
[402348072,1768661500231,-500.0,0.00018082,3]
[402348073,1768661500239,-311.24128532,0.00018082,3]
[402348074,1768661500248,-500.0,0.00018082,3]
[402348075,1768661500257,-1325.07,0.00018082,3]
[402348076,1768661500266,-1492.69,0.00018082,3]
[402348077,1768661500275,-500.0,0.00018082,3]
[402348078,1768661500284,-500.0,0.00018082,3]
[402348079,1768661500293,-500.0,0.00018082,3]
[402348080,1768661500304,-1498.4,0.00018082,3]
[402348081,1768661500313,-500.0,0.00018082,3]
[402348082,1768661500322,-500.0,0.00018082,3]
[402348083,1768661500332,-500.0,0.00018082,3]
[402348084,1768661500341,-1557.22,0.00018082,3]
[402348085,1768661500351,-500.0,0.00018082,3]
[402348086,1768661500360,-610.02,0.00018082,3]
[402348087,1768661500370,-500.0,0.00018082,3]
[402348088,1768661500379,-500.0,0.00018082,3]
[402348089,1768661500388,-500.0,0.00018082,3]
[402348090,1768661500397,-500.0,0.00018082,3]
[402348091,1768661500407,-949.8,0.00018082,3]
[402348092,1768661500416,-575.79,0.00018082,3]
[402348093,1768661500426,-1327.43,0.00018082,3]
[402348094,1768661500435,-597.75,0.00018082,3]
[402348095,1768661500445,-500.0,0.00018082,3]
[402348096,1768661500454,-909.15,0.00018082,3]
[402348097,1768661500462,-526.97,0.00018082,3]
[402348098,1768661500471,-789.61,0.00018082,3]
[402348099,1768661500480,-1837.73,0.00018082,3]
[402348100,1768661500489,-1798.52,0.00018082,3]
[402348101,1768661500498,-500.0,0.00018082,3]
[402348102,1768661500507,-1605.78,0.00018082,3]
[402348103,1768661500517,-500.0,0.00018082,2]
[402348104,1768661500527,-1626.0,0.00018123,2]
[402348105,1768661500536,-500.0,0.00018124,2]
[402348106,1768661500545,-601.4293559,0.0001818,12]
[402348107,1768661500554,-236.2,0.00018231,2]
[402348108,1768661500564,-192.96098043,0.00018236,2]
[402348109,1768661500574,-8077.22640448,0.00018248,2]
[402348110,1768661500583,-6984.659694,0.00018274,7]
[402348111,1768661500754,-202.0,0.00018298,2]
[402348112,1768661500764,-800.0,0.0001832,2]
[402348113,1768661500773,-383.39674053,0.00018325,40]
[402348114,1768661500783,-800.0,0.00018344,2]
[402348115,1768661500796,-800.0,0.0001835,2]
[402348116,1768661500806,-500.0,0.00018356,3]
[402348117,1768661500815,-500.0,0.00018356,3]
[402348118,1768661500824,-1160.51,0.00018356,3]
[402348119,1768661500834,-211.77953506,0.00018356,3]
[402348120,1768661500843,-500.0,0.00018356,3]
[402348121,1768661500853,-500.0,0.00018356,3]
[402348122,1768661500863,-536.13,0.00018356,3]
[402348123,1768661500873,-1068.9,0.00018356,3]
[402348124,1768661500882,-528.48,0.00018356,3]
[402348125,1768661500893,-736.46,0.00018356,3]
[402348126,1768661500902,-856.35,0.00018356,3]
[402348127,1768661500913,-500.0,0.00018356,3]
[402348128,1768661500923,-500.0,0.00018356,3]
[402348129,1768661500934,-552.75,0.00018356,3]
[402348130,1768661500943,-500.0,0.00018356,3]
[402348131,1768661500952,-500.0,0.00018356,3]
[402348132,1768661500962,-734.5,0.00018356,3]
[402348133,1768661500971,-602.81,0.00018356,3]
[402348134,1768661500980,-1514.49,0.00018356,3]
[402348135,1768661500989,-513.87,0.00018356,3]
[402348136,1768661500999,-500.0,0.00018356,3]
[402348137,1768661501009,-1059.32,0.00018356,3]
[402348138,1768661501018,-675.47,0.00018356,3]
[402348139,1768661501027,-1566.12,0.00018356,3]
[402348140,1768661501036,-500.0,0.00018356,3]
[402348141,1768661501045,-532.66063458,0.00018356,3]
[402348142,1768661501055,-500.0,0.00018356,3]
[402348143,1768661501064,-500.0,0.00018356,3]
[402348144,1768661501074,-815.89,0.00018356,3]
[402348145,1768661501083,-500.0,0.00018356,3]
[402348146,1768661501092,-838.97,0.00018356,3]
[402348147,1768661501101,-364.34256589,0.00018356,3]
[402348148,1768661501111,-500.0,0.00018356,3]
[402348149,1768661501120,-524.34,0.00018356,3]
[402348150,1768661501129,-688.39,0.00018356,3]
[402348151,1768661501138,-1056.42,0.00018356,3]
[402348152,1768661501148,-500.0,0.00018356,3]
[402348153,1768661501157,-1495.48,0.00018356,3]
[402348154,1768661501168,-195.78734149,0.00018356,3]
[402348155,1768661501178,-500.0,0.00018356,3]
[402348156,1768661501187,-752.62,0.00018356,3]
[402348157,1768661501197,-500.0,0.00018356,3]
[402348158,1768661501206,-500.0,0.00018356,3]
[402348159,1768661501215,-501.51,0.00018356,3]
[402348160,1768661501225,-500.0,0.00018356,3]
[402348161,1768661501235,-500.0,0.00018356,3]
[402348162,1768661501244,-1052.24,0.00018356,3]
[402348163,1768661501253,-1051.05,0.00018356,3]
[402348164,1768661501262,-601.51,0.00018356,3]
[402348165,1768661501271,-500.0,0.00018356,3]
[402348166,1768661501281,-583.92,0.00018356,3]
[402348167,1768661501290,-548.98,0.00018356,3]
[402348168,1768661501299,-560.01,0.00018356,3]
[402348169,1768661501308,-500.0,0.00018356,3]
[402348170,1768661501317,-500.0,0.00018356,3]
[402348171,1768661501326,-936.7,0.00018356,3]
[402348172,1768661501336,-500.0,0.00018356,3]
[402348173,1768661501345,-1336.79,0.00018356,3]
[402348174,1768661501354,-500.0,0.00018356,3]
[402348175,1768661501364,-559.76,0.00018356,3]
[402348176,1768661501373,-500.0,0.00018356,3]
[402348177,1768661501382,-612.99,0.00018356,3]
[402348178,1768661501391,-500.0,0.00018356,3]
[402348179,1768661501400,-699.00182338,0.00018356,3]
[402348180,1768661501409,-590.26232333,0.00018356,3]
[402348181,1768661501419,-500.0,0.00018356,3]
[402348182,1768661501429,-500.0,0.00018356,3]
[402348183,1768661501438,-623.25,0.00018356,3]
[402348184,1768661501447,-500.0,0.00018356,3]
[402348185,1768661501456,-500.0,0.00018356,3]
[402348186,1768661501466,-500.0,0.00018356,3]
[402348187,1768661501475,-611.35197763,0.00018356,3]
[402348188,1768661501487,-500.0,0.00018356,3]
[402348189,1768661501496,-500.0,0.00018356,3]
[402348190,1768661501505,-500.0,0.00018356,3]
[402348191,1768661501514,-500.0,0.00018356,3]
[402348192,1768661501524,-500.0,0.00018356,3]
[402348193,1768661501534,-500.0,0.00018356,3]
[402348194,1768661501543,-500.0,0.00018356,3]
[402348195,1768661501552,-1318.04,0.00018356,3]
[402348196,1768661501562,-831.21,0.00018356,3]
[402348197,1768661501571,-512.66871378,0.00018356,3]
[402348198,1768661501581,-500.0,0.00018356,3]
[402348199,1768661501592,-1046.42,0.00018356,3]
[402348200,1768661501601,-697.09,0.00018356,3]
[402348201,1768661501611,-1072.24,0.00018356,3]
[402348202,1768661501620,-953.25120035,0.00018356,2]
[402348203,1768661501630,-500.0,0.00018356,3]
[402348204,1768661501639,-500.0,0.00018356,3]
[402348205,1768661501649,-500.0,0.00018356,3]
[402348206,1768661501661,-500.0,0.00018356,3]
[402348207,1768661501671,-500.0,0.00018356,3]
[402348208,1768661501680,-1296.3,0.00018356,3]
[402348209,1768661501690,-500.0,0.00018356,3]
[402348210,1768661501699,-500.0,0.00018356,3]
[402348211,1768661501708,-1576.93,0.00018356,3]
[402348212,1768661501720,-500.0,0.00018356,2]
[402348213,1768661501730,-622.86303291,0.00018356,3]
[402348214,1768661501739,-500.0,0.00018356,2]
[402348215,1768661501749,-500.0,0.00018356,3]
[402348216,1768661501761,-500.0,0.00018356,3]
[402348217,1768661501771,-500.0,0.00018356,3]
[402348218,1768661501781,-1006.11,0.00018356,3]
[402348219,1768661501791,-500.0,0.00018356,3]
[402348220,1768661501800,-706.14,0.00018356,3]
[402348221,1768661501810,-1121.76,0.00018356,3]
[402348222,1768661501819,-507.06,0.00018356,3]
[402348223,1768661501829,-1150.76,0.00018356,3]
[402348224,1768661501840,-500.0,0.00018356,3]
[402348225,1768661501849,-567.58,0.00018356,3]
[402348226,1768661501859,-1124.68,0.00018356,3]
[402348227,1768661501868,-1039.3,0.00018356,3]
[402348228,1768661501878,-500.0,0.00018356,3]
[402348229,1768661501888,-1245.86,0.00018356,3]
[402348230,1768661501898,-527.98947312,0.00018356,3]
[402348231,1768661501907,-500.0,0.00018356,3]
[402348232,1768661501917,-500.0,0.00018356,3]
[402348233,1768661501926,-500.0,0.00018356,3]
[402348234,1768661501946,-500.0,0.00018356,3]
[402348235,1768661501963,-500.0,0.00018356,3]
[402348236,1768661501983,-899.3,0.00018356,3]
[402348237,1768661502002,-548.56,0.00018356,3]
[402348238,1768661502021,-500.0,0.00018356,3]
[402348239,1768661502040,-500.0,0.00018356,3]
[402348240,1768661502056,-500.0,0.00018356,3]
[402348241,1768661502073,-950.57,0.00018356,3]
[402348242,1768661502092,-875.06,0.00018356,3]
[402348243,1768661502113,-500.0,0.00018356,3]
[402348244,1768661502126,-500.0,0.00018356,3]
[402348245,1768661502145,-1443.97,0.00018356,3]
[402348246,1768661502160,-500.0,0.00018356,3]
[402348247,1768661502177,-1864.45,0.00018356,3]
[402348248,1768661502193,-500.0,0.00018356,3]
[402348249,1768661502209,-500.0,0.00018356,3]
[402348250,1768661502225,-500.0,0.00018356,3]
[402348251,1768661502240,-500.0,0.00018356,3]
[402348252,1768661502256,-807.18,0.00018356,3]
[402348253,1768661502271,-1290.77,0.00018356,3]
[402348254,1768661502287,-500.0,0.00018356,3]
[402348255,1768661502302,-500.0,0.00018356,3]
[402348256,1768661502317,-1873.13,0.00018356,3]
[402348257,1768661502331,-500.0,0.00018356,3]
[402348258,1768661502346,-916.76,0.00018356,3]
[402348259,1768661502362,-500.0,0.00018356,3]
[402348260,1768661502377,-507.22,0.00018356,3]
[402348261,1768661502393,-500.0,0.00018356,3]
[402348262,1768661502409,-500.0,0.00018356,3]
[402348263,1768661502425,-500.0,0.00018356,3]
[402348264,1768661502440,-821.87,0.00018356,3]
[402348265,1768661502457,-987.45,0.00018356,3]
[402348266,1768661502472,-711.39,0.00018356,3]
[402348267,1768661502488,-789.58,0.00018356,3]
[402348268,1768661502503,-1022.81,0.00018356,3]
[402348269,1768661502519,-1195.09,0.00018356,3]
[402348270,1768661502535,-500.0,0.00018356,3]
[402348271,1768661502549,-1009.98,0.00018356,3]
[402348272,1768661502565,-672.16,0.00018356,3]
[402348273,1768661502581,-500.0,0.00018356,3]
[402348274,1768661502596,-500.0,0.00018356,3]
[402348275,1768661502612,-877.48,0.00018356,3]
[402348276,1768661502626,-642.32,0.00018356,3]
[402348277,1768661502641,-2039.69,0.00018356,3]
[402348278,1768661502656,-508.58,0.00018356,3]
[402348279,1768661502672,-567.29,0.00018356,3]
[402348280,1768661502687,-500.0,0.00018356,3]
[402348281,1768661502702,-1802.92,0.00018356,3]
[402348282,1768661502720,-500.0,0.00018356,3]
[402348283,1768661502735,-500.0,0.00018356,3]
[402348284,1768661502750,-659.62,0.00018356,3]
[402348285,1768661502766,-830.09,0.00018356,3]
[402348286,1768661502781,-500.0,0.00018356,3]
[402348287,1768661502796,-1777.6,0.00018356,3]
[402348288,1768661502811,-500.0,0.00018356,3]
[402348289,1768661502826,-582.36,0.00018356,3]
[402348290,1768661502842,-887.42,0.00018356,3]
[402348291,1768661502857,-500.0,0.00018356,3]
[402348292,1768661502871,-500.0,0.00018356,3]
[402348293,1768661502887,-500.0,0.00018356,3]
[402348294,1768661502903,-348.04789676,0.00018356,3]
[402348295,1768661502918,-500.0,0.00018356,3]
[402348296,1768661502933,-2401.87,0.00018356,3]
[402348297,1768661502948,-1051.13,0.00018356,3]
[402348298,1768661502962,-500.0,0.00018356,3]
[402348299,1768661502977,-500.0,0.00018356,3]
[402348300,1768661502992,-775.93,0.00018356,3]
[402348301,1768661503006,-500.0,0.00018356,3]
[402348302,1768661503021,-1463.58,0.00018356,3]
[402348303,1768661503037,-500.0,0.00018356,3]
[402348304,1768661503052,-511.21,0.00018356,3]
[402348305,1768661503067,-205.70334836,0.00018356,3]
[402348306,1768661503082,-833.11,0.00018356,3]
[402348307,1768661503096,-1523.15,0.00018356,3]
[402348308,1768661503111,-534.98,0.00018356,3]
[402348309,1768661503126,-593.18,0.00018356,3]
[402348310,1768661503140,-500.0,0.00018356,3]
[402348311,1768661503155,-692.98,0.00018356,3]
[402348312,1768661503174,-500.0,0.00018356,3]
[402348313,1768661503188,-500.0,0.00018356,3]
[402348314,1768661503203,-590.01,0.00018356,3]
[402348315,1768661503217,-626.27,0.00018356,3]
[402348316,1768661503232,-500.0,0.00018356,3]
[402348317,1768661503247,-1613.44,0.00018356,3]
[402348318,1768661503261,-643.39,0.00018356,3]
[402348319,1768661503276,-500.0,0.00018356,3]
[402348320,1768661503290,-1020.04,0.00018356,3]
[402348321,1768661503306,-500.0,0.00018356,3]
[402348322,1768661503321,-500.0,0.00018356,3]
[402348323,1768661503335,-500.0,0.00018356,3]
[402348324,1768661503350,-500.0,0.00018356,3]
[402348325,1768661503364,-1460.86,0.00018356,3]
[402348326,1768661503379,-2617.38,0.00018356,3]
[402348327,1768661503394,-1046.32,0.00018356,3]
[402348328,1768661503408,-1516.4,0.00018356,3]
[402348329,1768661503423,-500.0,0.00018356,3]
[402348330,1768661503437,-500.0,0.00018356,3]
[402348331,1768661503451,-1783.62,0.00018356,3]
[402348332,1768661503466,-500.0,0.00018356,3]
[402348333,1768661503480,-1037.02,0.00018356,3]
[402348334,1768661503494,-794.97,0.00018356,3]
[402348335,1768661503508,-500.0,0.00018356,3]
[402348336,1768661503522,-500.0,0.00018356,3]
[402348337,1768661503537,-1082.97,0.00018356,3]
[402348338,1768661503551,-970.02,0.00018356,3]
[402348339,1768661503566,-598.07,0.00018356,3]
[402348340,1768661503581,-500.0,0.00018356,3]
[402348341,1768661503597,-500.0,0.00018356,3]
[402348342,1768661503612,-1061.32,0.00018356,3]
[402348343,1768661503628,-2043.5,0.00018356,3]
[402348344,1768661503643,-1025.82,0.00018356,3]
[402348345,1768661503657,-551.15,0.00018356,3]
[402348346,1768661503672,-500.0,0.00018356,3]
[402348347,1768661503688,-500.0,0.00018356,3]
[402348348,1768661503702,-2020.94,0.00018356,3]
[402348349,1768661503719,-500.0,0.00018356,3]
[402348350,1768661503734,-1407.02,0.00018356,3]
[402348351,1768661503750,-947.11,0.00018356,3]
[402348352,1768661504010,-526.7,0.00018356,3]
[402348353,1768661504020,-500.0,0.00018356,3]
[402348354,1768661504029,-1314.5,0.00018356,3]
[402348355,1768661504044,-500.0,0.00018356,3]
[402348356,1768661504053,-500.0,0.00018356,3]
[402348357,1768661504062,-517.02,0.00018356,3]
[402348358,1768661504071,-740.24,0.00018356,3]
[402348359,1768661504080,-1000.0,0.00018356,2]
[402348360,1768661504089,-789.24,0.00018356,3]
[402348361,1768661504099,-596.93,0.00018356,3]
[402348362,1768661504108,-500.0,0.00018356,3]
[402348363,1768661504117,-500.0,0.00018356,3]
[402348364,1768661504127,-500.0,0.00018356,3]
[402348365,1768661504135,-500.0,0.00018356,3]
[402348366,1768661504144,-500.0,0.00018356,3]
[402348367,1768661504154,-660.85,0.00018356,3]
[402348368,1768661504163,-500.0,0.00018356,3]
[402348369,1768661504173,-500.0,0.00018356,3]
[402348370,1768661504182,-500.0,0.00018356,3]
[402348371,1768661504191,-584.78,0.00018356,3]
[402348372,1768661504200,-534.26411861,0.00018356,3]
[402348373,1768661504209,-1310.48,0.00018356,3]
[402348374,1768661504218,-551.9,0.00018356,3]
[402348375,1768661504227,-500.0,0.00018356,3]
[402348376,1768661504236,-500.0,0.00018356,3]
[402348377,1768661504245,-500.0,0.00018356,3]
[402348378,1768661504254,-864.77,0.00018356,3]
[402348379,1768661504262,-500.0,0.00018356,3]
[402348380,1768661504271,-861.68,0.00018356,3]
[402348381,1768661504280,-536.72,0.00018356,3]
[402348382,1768661504290,-521.17,0.00018356,3]
[402348383,1768661504299,-802.62,0.00018356,3]
[402348384,1768661504308,-1746.05,0.00018356,3]
[402348385,1768661504317,-500.0,0.00018356,3]
[402348386,1768661504326,-1553.75,0.00018356,3]
[402348387,1768661504336,-500.0,0.00018356,3]
[402348388,1768661504346,-500.0,0.00018356,3]
[402348389,1768661504356,-828.1,0.00018356,3]
[402348390,1768661504367,-500.0,0.00018356,3]
[402348391,1768661504377,-500.0,0.00018356,3]
[402348392,1768661504386,-587.43,0.00018356,3]
[402348393,1768661504398,-500.0,0.00018356,3]
[402348394,1768661504407,-1263.03,0.00018356,3]
[402348395,1768661504418,-516.82,0.00018356,3]
[402348396,1768661504428,-992.52,0.00018356,3]
[402348397,1768661504439,-1277.69,0.00018356,3]
[402348398,1768661504450,-500.0,0.00018356,3]
[402348399,1768661504459,-500.0,0.00018356,3]
[402348400,1768661504469,-500.0,0.00018356,3]
[402348401,1768661504479,-2165.22,0.00018356,3]
[402348402,1768661504488,-1522.68,0.00018356,3]
[402348403,1768661504497,-500.0,0.00018356,3]
[402348404,1768661504506,-864.35,0.00018356,3]
[402348405,1768661504515,-500.0,0.00018356,3]
[402348406,1768661504525,-588.61,0.00018356,3]
[402348407,1768661504534,-1032.73,0.00018356,3]
[402348408,1768661504544,-696.22,0.00018356,3]
[402348409,1768661504556,-557.15103403,0.00018356,3]
[402348410,1768661504566,-1467.06,0.00018356,3]
[402348411,1768661504575,-500.0,0.00018356,3]
[402348412,1768661504586,-500.0,0.00018356,3]
[402348413,1768661504596,-310.90446794,0.00018356,3]
[402348414,1768661504606,-500.0,0.00018356,3]
[402348415,1768661504616,-500.0,0.00018356,3]
[402348416,1768661504627,-470.6383794,0.00018356,3]
[402348417,1768661504636,-500.0,0.00018356,3]
[402348418,1768661504645,-610.68,0.00018356,3]
[402348419,1768661504655,-1520.34,0.00018356,3]
[402348420,1768661504665,-500.0,0.00018356,3]
[402348421,1768661504674,-514.7,0.00018356,3]
[402348422,1768661504684,-1254.34,0.00018356,3]
[402348423,1768661504694,-500.0,0.00018356,3]
[402348424,1768661504704,-500.0,0.00018356,3]
[402348425,1768661504713,-500.0,0.00018356,3]
[402348426,1768661504726,-500.0,0.00018356,3]
[402348427,1768661504735,-721.16,0.00018356,3]
[402348428,1768661504745,-1352.6,0.00018356,3]
[402348429,1768661504755,-14920.45,0.00018356,3]
[402348430,1768661504765,-1465.51,0.00018356,3]
[402348431,1768661504774,-3641.66,0.00018356,3]
[402348432,1768661504784,-1082.53,0.00018356,3]
[402348433,1768661504795,-676.48,0.00018356,3]
[402348434,1768661504805,-500.0,0.00018356,3]
[402348435,1768661504815,-500.0,0.00018356,3]
[402348436,1768661504826,-2115.14,0.00018356,3]
[402348437,1768661504836,-284.7821744,0.00018356,3]
[402348438,1768661504848,-703.56,0.00018356,3]
[402348439,1768661504858,-561.96,0.00018356,3]
[402348440,1768661504868,-1581.57,0.00018356,3]
[402348441,1768661504877,-1476.24,0.00018356,3]
[402348442,1768661504887,-500.0,0.00018356,3]
[402348443,1768661504896,-1448.75,0.00018356,3]
[402348444,1768661504907,-661.85,0.00018356,3]
[402348445,1768661504917,-500.0,0.00018356,3]
[402348446,1768661504926,-1922.86,0.00018356,3]
[402348447,1768661504935,-957.46,0.00018356,3]
[402348448,1768661504945,-500.0,0.00018356,3]
[402348449,1768661504954,-802.37,0.00018356,3]
[402348450,1768661504963,-500.0,0.00018356,3]
[402348451,1768661504973,-500.0,0.00018356,3]
[402348452,1768661504983,-710.51,0.00018356,3]
[402348453,1768661504992,-662.64,0.00018356,3]
[402348454,1768661505002,-1152.1,0.00018356,3]
[402348455,1768661505012,-2147.02,0.00018356,3]
[402348456,1768661505022,-500.0,0.00018356,3]
[402348457,1768661505031,-964.66,0.00018356,3]
[402348458,1768661505042,-500.0,0.00018356,3]
[402348459,1768661505052,-681.74,0.00018356,3]
[402348460,1768661505062,-1524.91,0.00018356,3]
[402348461,1768661505071,-500.0,0.00018356,3]
[402348462,1768661505080,-677.8,0.00018356,3]
[402348463,1768661505090,-500.0,0.00018356,3]
[402348464,1768661505101,-500.0,0.00018356,3]
[402348465,1768661505111,-500.0,0.00018356,3]
[402348466,1768661505121,-1115.78,0.00018356,3]
[402348467,1768661505131,-753.38,0.00018356,3]
[402348468,1768661505140,-437.89239693,0.00018356,3]
[402348469,1768661505150,-757.17,0.00018356,3]
[402348470,1768661505159,-500.0,0.00018356,3]
[402348471,1768661505168,-500.0,0.00018356,3]
[402348472,1768661505177,-316.32438621,0.00018356,3]
[402348473,1768661505187,-500.0,0.00018356,3]
[402348474,1768661505196,-537.73,0.00018356,3]
[402348475,1768661505205,-1800.98,0.00018356,3]
[402348476,1768661505215,-500.0,0.00018356,3]
[402348477,1768661505223,-939.73,0.00018356,3]
[402348478,1768661505233,-952.1,0.00018356,3]
[402348479,1768661505242,-1093.56,0.00018356,3]
[402348480,1768661505251,-1386.86,0.00018356,3]
[402348481,1768661505260,-980.85,0.00018356,3]
[402348482,1768661505270,-930.93,0.00018356,3]
[402348483,1768661505279,-594.6,0.00018356,3]
[402348484,1768661505288,-1265.41,0.00018356,3]
[402348485,1768661505297,-651.71,0.00018356,3]
[402348486,1768661505306,-1106.71,0.00018356,3]
[402348487,1768661505316,-500.0,0.00018356,3]
[402348488,1768661505325,-1231.17,0.00018356,3]
[402348489,1768661505334,-500.0,0.00018356,3]
[402348490,1768661505343,-500.0,0.00018356,3]
[402348491,1768661505352,-500.0,0.00018356,3]
[402348492,1768661505362,-500.0,0.00018356,3]
[402348493,1768661505371,-500.0,0.00018356,3]
[402348494,1768661505381,-1128.36,0.00018356,3]
[402348495,1768661505390,-500.0,0.00018356,3]
[402348496,1768661505400,-500.0,0.00018356,3]
[402348497,1768661505409,-590.66,0.00018356,3]
[402348498,1768661505419,-1695.86,0.00018356,3]
[402348499,1768661505429,-500.0,0.00018356,3]
[402348500,1768661505439,-500.0,0.00018356,3]
[402348501,1768661505448,-500.0,0.00018356,3]
[402348502,1768661505458,-500.0,0.00018356,3]
[402348503,1768661505467,-500.0,0.00018356,3]
[402348504,1768661505476,-500.0,0.00018356,3]